Cogmind - Beta 15 @@@ ROGUE MODE // 2025.05.23 @ 17:36:17 Player: Tel Result: Destroyed by H-61 Shepherd with Heavy Assault Cannon Performance ------------- Evolutions (2) 1000 Regions Visited (7) 1400 Robots Destroyed (80) 400 Value Destroyed (3030) 3030 Prototype IDs (27) 540 Alien Tech Used (0) 0 Bonus (1440) 1440 TOTAL SCORE: 7810 Bonus ------- High Alert Combat Kills 372 Follower Combat Kills 68 Entered Garrisons 200 Used RIF Installer 500 Aligned with FarCom 300 Cogmind --------- Core Integrity 0/550 Matter 290/300 Energy 112/160 System Corruption 4% Temperature Cool (0) Movement Rolling (105) Ox1 Location -8/Materials Parts ------- > --- POWER (1) -------- Light Nuclear Core > --- PROPULSION (2) --- Armored Wheel Armored Wheel (fused) > --- UTILITY (6) ------ Large Storage Unit Hardlight Generator Hacking Suite Hacking Suite System Shield Relay Coupler [Sentry] (11) > --- WEAPON (2) ------- Improved Datajack > --- INVENTORY (15) --- Armored Wheel Armored Wheel High-capacity Matter Pod (200) Light Armor Plating Light Armor Plating Light Armor Plating Hacking Suite Relay Coupler [Grunt] (29) Relay Coupler [Sentry] (25) Relay Coupler [Hunter] (14) Ion Cannon Ion Cannon Field Lobotomy Kit (5) Peak State ------------ > --- POWER ------------ Light Nuclear Core > --- PROPULSION ------- Armored Treads Armored Treads > --- UTILITY ---------- Improved Heat Sink Large Storage Unit Utility Shielding Heavy Armor Plating Hardlight Generator > --- WEAPON ----------- Ion Cannon Assault Cannon > --- INVENTORY -------- Nuclear Core Reinforced Deuterium Engine Reinforced Deuterium Engine Wheel Compact Wheel High-capacity Matter Pod High-capacity Matter Pod Improved Utility Shielding Light Armor Plating Heavy Armor Plating Ion Cannon Grenade Launcher Field Lobotomy Kit Mining Claw [Rating: 33] Favorites ----------- Power Light Nuclear Core Engine Ion Engine Power Core Light Nuclear Core Propulsion Armored Wheel Treads Armored Treads Wheel Armored Wheel Flight Unit Improved Flight Unit Utility Light Armor Plating Device Improved Heat Sink Storage Large Storage Unit Hackware System Shield Protection Light Armor Plating Weapon Ion Cannon Energy Gun Medium Laser Energy Cannon Ion Cannon Ballistic Gun Assault Rifle Ballistic Cannon Assault Cannon Launcher Grenade Launcher Impact Weapon Heavy Mace Slashing Weapon Mining Claw Special Melee Weapon Improved Datajack Build | -11 -10 -10 -10 -9 -8 -8 -8 ------- Run | Yrd Mat Min Exi Min Mat Gar Mat Slots Evolved 4 | . . . . . 4 . . Power . | . . . . . . . . Propulsion . | . . . . . . . . Utility 4 | . . . . . 4 . . Weapon . | . . . . . . . . Parts Attached 66 | 6 8 1 1 5 17 17 11 Power 9 | 1 1 . . . 3 4 . Engine 6 | 1 1 . . . 2 2 . Core 3 | . . . . . 1 2 . Reactor . | . . . . . . . . Propulsion 13 | 2 1 . . 1 4 3 2 Treads 3 | . . . . . 3 . . Leg . | . . . . . . . . Wheel 9 | 2 1 . . 1 1 3 1 Hover . | . . . . . . . . Flight 1 | . . . . . . . 1 Utility 29 | 1 4 . 1 3 8 6 6 Device 4 | . 1 . . . 2 1 . Storage 3 | 1 1 . . 1 . . . Processor . | . . . . . . . . Hackware 6 | . . . . . . . 6 Protection 16 | . 2 . 1 2 6 5 . Artifact . | . . . . . . . . Weapon 15 | 2 2 1 . 1 2 4 3 Energy Gun 1 | 1 . . . . . . . Energy Cannon 5 | . 1 . . . 2 2 . Ballistic Gun 3 | 1 . . . 1 . . 1 Ballistic Cannon 1 | . . . . . . 1 . Launcher 1 | . . 1 . . . . . Special Weapon . | . . . . . . . . Impact Weapon 1 | . . . . . . . 1 Slashing Weapon 2 | . 1 . . . . 1 . Piercing Weapon . | . . . . . . . . Special Melee Weapon 1 | . . . . . . . 1 Unidentified Prototypes 2 | . . . . . . . 2 Parts Lost 10 | . 1 . . 1 2 6 . Power 2 | . . . . . 1 1 . Propulsion 3 | . 1 . . . 1 1 . Utility 4 | . . . . 1 . 3 . Weapon 1 | . . . . . . 1 . Highest Loss Streak 2 | . 1 . . 1 1 2 . To Critical Strikes . | . . . . . . . . Average Backups 13 | 1 7 14 14 14 14 13 14 Power 2 | . . 1 3 4 3 1 . Propulsion 1 | . . . . . 3 2 1 Utility 6 | . 4 9 7 6 4 5 10 Weapon 2 | . 2 4 3 2 3 1 1 Tool/Special . | . . . . . . . . Unused Backups 28 | . 2 . 5 . 4 8 9 Power 5 | . 1 . . . 1 3 . Propulsion 5 | . . . . . 2 2 1 Utility 15 | . 1 . 4 . . 3 7 Weapon 2 | . . . 1 . 1 . . Tool/Special 1 | . . . . . . . 1 Average Slot Usage (%) 97 | . 94 100 100 99 98 94 99 Engine 6 | . 14 14 14 14 7 2 . Core 3 | . . . . . . 6 9 Treads 2 | . . . . . . 5 . Wheel 19 | . 27 28 28 28 17 12 17 Device 11 | . . . . . 16 18 17 Storage 10 | . 14 14 14 14 9 9 9 Hackware 1 | . . . . . . . 9 Protection 19 | . 9 14 14 13 28 22 17 Energy Cannon 10 | . 8 . . . 12 13 15 Ballistic Gun 5 | . 14 14 14 14 3 . . Launcher 3 | . . 13 14 13 2 . . Peak Build Rating 33 | 6 9 9 10 11 29 33 33 Average Rating 21 | 3 7 9 9 10 22 29 30 On Entrance 12 | . 6 9 9 10 10 29 29 Naked Turns . | . . . . . . . . Heaviest Build 62 | 12 33 33 33 37 59 62 51 Greatest Support 40 | 26 26 26 26 26 26 40 24 Greatest Overweight (x) 4 | . 2 1 1 1 2 2 4 Average Overweight (x) 1 | . . 1 1 1 1 1 1 Largest Inventory Capacity 25 | 8 15 15 15 25 15 15 15 Average Capacity 14 | 6 14 15 15 15 15 15 15 Most Carried 16 | 5 15 15 15 16 15 15 15 Average Carried 13 | 2 7 14 14 14 14 14 14 Final Capacity 15 | 8 15 15 15 15 15 15 15 Final Carried 15 | 2 14 15 15 15 15 14 13 Class Distribution -------------------- 58% | Mutant 37% | Scavenger-Mutant Dominant Class ---------------- Mutant | -10/Materials Mutant | -10/Mines Mutant | -10/Exiles Mutant | -9/Mines Mutant | -8/Materials Scavenger-Mutant | -8/Garrison Scavenger-Mutant | -8/Materials Resources | -11 -10 -10 -10 -9 -8 -8 -8 ----------- Run | Yrd Mat Min Exi Min Mat Gar Mat Matter Collected 2361 | 244 170 213 92 145 596 746 155 Remotely . | . . . . . . . . Salvage Created 2809 | . 197 150 . 162 577 1356 367 Parts 148 | . 13 11 . 20 32 57 15 Haulers Intercepted 5 | . . . . . 1 . 4 Recyclers Shooed 1 | . . 1 . . . . . Parts Field Recycled . | . . . . . . . . Retrieved Matter . | . . . . . . . . Parts Self-Destructed . | . . . . . . . . Prevented . | . . . . . . . . Kills | -11 -10 -10 -10 -9 -8 -8 -8 ------- Run | Yrd Mat Min Exi Min Mat Gar Mat Combat Hostiles Destroyed 64 | . 3 7 . 8 17 28 1 Guns 1 | . 1 . . . . . . Cannons 30 | . 2 . . . 5 22 1 AOE 32 | . . 7 . 8 11 6 . Classes Destroyed 14 | . 3 4 . 1 5 . 1 Worker 4 | . . 1 . 2 . . 1 Tunneler 1 | . . . . 1 . . . Hauler 5 | . . . . . 1 . 4 Recycler 2 | . . 1 . 1 . . . Mechanic 1 | . 1 . . . . . . Operator 3 | . 1 . . . 1 . 1 Watcher 2 | . . . . . . . 2 Swarmer 23 | . . 3 . 6 3 11 . Grunt 29 | . 3 2 . 2 8 13 1 Brawler 1 | . . . . . 1 . . Duelist 4 | . . . . . 1 3 . Sentry 4 | . . . . . 3 1 . Hunter 1 | . . . . . 1 . . Assembled 2 | . . 2 . . . . . Best Kill Streak 9 | . 2 7 . 7 9 5 2 Combat Bots Only 9 | . 2 5 . 5 9 5 1 Max Kills in Single Turn 3 | . 1 2 . 2 3 2 1 Gunslinging . | . . . . . . . . Exploded 3 | . . 2 . 1 3 2 . Melee . | . . . . . . . . Uniques/NPCs Destroyed . | . . . . . . . . Combat | -11 -10 -10 -10 -9 -8 -8 -8 -------- Run | Yrd Mat Min Exi Min Mat Gar Mat Hostile Shots Fired 328 | . 27 11 . 31 70 160 29 Missed 97 | . 6 3 . 16 19 42 11 Hits 231 | . 21 8 . 15 51 118 18 Melee 3 | . . . . . . 3 . Projectile 228 | . 21 8 . 15 51 115 18 Critical Strikes 14 | . . 1 . . 2 8 3 Damage Taken 3590 | . 414 105 . 158 598 2061 254 Core 755 | . 139 8 . 42 37 371 158 Absorbed by Shields 352 | . . . . . 164 116 72 Redirected to Shielding 88 | . . . . . 19 69 . Regen/Repaired (Parts) 151 | . . . . . . . 151 Core Remaining (%) 62 | 100 . . . 24 . . . Volleys Fired 189 | . 23 8 . 27 32 87 12 Largest 2 | . 2 2 . 2 2 2 2 Hottest 120 | . 80 50 . 80 120 120 120 Shots Fired 336 | . 43 12 . 29 62 166 24 Gun 38 | . 26 4 . 5 3 . . Cannon 249 | . 17 . . 2 48 158 24 Launcher 49 | . . 8 . 22 11 8 . Special . | . . . . . . . . Kinetic 53 | . 23 4 . 5 3 18 . Thermal 234 | . 20 . . 2 48 140 24 Explosive 49 | . . 8 . 22 11 8 . Electromagnetic . | . . . . . . . . Robot Hit Streak 11 | . 8 5 . 2 11 7 5 Robot Miss Streak 4 | . 3 1 . 2 4 3 3 Penetration Max . | . . . . . . . . Secondary Targets . | . . . . . . . . Shots Hit Robots 238 | . 28 9 . 3 38 135 25 Core Hits 155 | . 11 14 . 19 40 65 6 Critical Kills 3 | . . . . 1 1 . 1 Critical Parts Destroyed . | . . . . . . . . Critical Strikes 4 | . . . . 1 1 1 1 Meltdown 2 | . . . . . 1 . 1 Destroy 1 | . . . . 1 . . . Blast 1 | . . . . . . 1 . Melee Attacks 78 | . 1 . . . . 63 14 Impact 6 | . . . . . . . 6 Slashing 64 | . 1 . . . . 63 . Piercing . | . . . . . . . . Sneak Attacks 3 | . . . . . . . 3 Combat Hostiles . | . . . . . . . . Follow-up Attacks . | . . . . . . . . Damage Inflicted 8356 | . 426 621 . 675 1696 4240 698 Guns 298 | . 232 28 . 10 28 . . Cannons 2927 | . 194 . . 17 646 1704 366 Explosions 2793 | . . 593 . 648 1022 530 . Melee 2338 | . . . . . . 2006 332 Ramming . | . . . . . . . . Kinetic 504 | . 206 28 . 10 28 232 . Thermal 2721 | . 220 . . 17 646 1472 366 Explosive 2793 | . . 593 . 648 1022 530 . Electromagnetic . | . . . . . . . . Impact 332 | . . . . . . . 332 Slashing 2006 | . . . . . . 2006 . Piercing . | . . . . . . . . Highest Corruption 4 | . . . . . 1 4 4 Average Corruption 3 | . . . . . 1 3 4 Corruption Purged . | . . . . . . . . Corruption Blocked . | . . . . . . . . Effects 60 | . . . . . 9 34 17 Message Errors 18 | . . . . . 4 8 6 Matter Fused 8 | . . . . . 1 6 1 Heat Flow Errors 5 | . . . . . . 3 2 Energy Discharges 8 | . . . . . . 5 3 Parts Rejected 1 | . . . . . . 1 . Parts Fused 2 | . . . . . . 1 1 Data Loss (minor) 14 | . . . . . 2 8 4 Data Loss (major) 2 | . . . . . 1 1 . Alerts 1 | . . . . . . 1 . Weapon Failures 1 | . . . . . 1 . . Overload Shots . | . . . . . . . . Overflow Damage 256 | . . . . . 49 62 145 Projectiles 66 | . . . . . 21 23 22 Explosions 28 | . . . . . 28 . . Melee 162 | . . . . . . 39 123 Knockbacks 4 | . . . . . . 3 1 Impact 1 | . . . . . . . 1 Kinetic 3 | . . . . . . 3 . Secondary . | . . . . . . . . Self-Inflicted Damage 41 | . . . . 26 . 15 . Shots 2 | . . . . 1 . 1 . Rammed . | . . . . . . . . Targets Rammed . | . . . . . . . . Kicked . | . . . . . . . . Crushed . | . . . . . . . . Highest Temperature 355 | . 355 8 . 27 153 243 144 Average Temperature 69 | . 121 4 . 13 57 62 55 Received Heat Transfer 1348 | . 171 35 . 21 297 744 80 Effects 1 | . 1 . . . . . . Shutdowns 1 | . 1 . . . . . . Siege Activations . | . . . . . . . . Martial Activations . | . . . . . . . . Shielding Activations . | . . . . . . . . Robots Disrupted . | . . . . . . . . Combat Hostiles . | . . . . . . . . Robots Corrupted 1 | . . . . . . . 1 Combat Hostiles . | . . . . . . . . Parts Fried 2 | . . . . . . . 2 Impact Corruptions 3 | . . . . . . . 3 Robots Melted 2 | . . . . . 1 . 1 Combat Hostiles 1 | . . . . . 1 . . Parts Melted 10 | . . . . . 3 4 3 Heat Transferred 4302 | . 481 . . 37 1036 2156 592 Parts Sabotaged . | . . . . . . . . Parts Stolen . | . . . . . . . . Parts Stripped . | . . . . . . . . Power Chain Reactions . | . . . . . . . . Alert | -11 -10 -10 -10 -9 -8 -8 -8 ------- Run | Yrd Mat Min Exi Min Mat Gar Mat Maximum Alert Level 5 | . . . . 1 1 5 3 Low Security (%) 36 | 100 100 100 . 98 37 2 . Level 1 13 | . . . . 1 62 8 5 Level 2 17 | . . . . . . 24 49 Level 3 17 | . . . . . . 27 44 Level 4 12 | . . . . . . 31 . Level 5 2 | . . . . . . 5 . High Security . | . . . . . . . . Max Security . | . . . . . . . . Peak Influence 1629 | . 80 149 . 201 353 1629 803 Initial 793 | . . 17 . . 29 180 793 Average 520 | . 20 28 . 94 195 924 661 Influence Increases 2909 | . 171 179 . 301 547 1509 202 Destroy 0b10 Robot/C 1280 | . 60 100 . 160 340 560 60 Destroy 0b10 Robot/NC 120 | . 10 10 . 20 10 30 40 Destroy Leader 244 | . 20 20 . 30 82 60 32 Allied During Kill 4 | . . . . . . . 4 Trap Triggered on 0b10 10 | . . . . . . 10 . Successful Hack 68 | . 5 . . . 17 . 46 Disable Machine 105 | . 30 . . . . 75 . Anti-Garrison Action 600 | . . . . . . 600 . Destroy Structure 268 | . 1 49 . 76 38 99 5 Lose Combat Pursuer 210 | . 45 . . 15 60 75 15 Influence Decreases 2646 | . 126 85 139 226 344 158 1568 Entered New Map 1147 | . . 28 139 . 46 98 836 Time Decay 1009 | . 116 57 . 216 278 . 342 Lost Part 100 | . 10 . . 10 20 60 . Lost Ally 90 | . . . . . . . 90 Purge Threat 300 | . . . . . . . 300 Squads Dispatched 8 | . . . . . 4 . 4 Investigation 1 | . . . . . 1 . . Extermination . | . . . . . . . . Reinforcement 6 | . . . . . 2 . 4 Assault . | . . . . . . . . Garrison 1 | . . . . . 1 . . Intercept . | . . . . . . . . Searches Triggered . | . . . . . . . . Construction Impeded 1 | . . . . . 1 . . Haulers Reinforced . | . . . . . . . . Active Scanning Responses . | . . . . . . . . Cargo Convoy Interrupts . | . . . . . . . . Stealth | -11 -10 -10 -10 -9 -8 -8 -8 --------- Run | Yrd Mat Min Exi Min Mat Gar Mat Distress Signals 7 | . . 1 . 1 2 . 3 Communications Jammed . | . . . . . . . . Distress Signals . | . . . . . . . . Times Spotted 108 | . 8 20 . 8 20 31 21 Peak Tracking Total 19 | . 2 19 . 3 8 6 9 Tactical Retreats 11 | . 2 . . 1 3 4 1 Traps | -11 -10 -10 -10 -9 -8 -8 -8 ------- Run | Yrd Mat Min Exi Min Mat Gar Mat Traps Triggered 15 | . 3 . . . 1 10 1 Indirectly . | . . . . . . . . Trap Hack Attempts . | . . . . . . . . Triggered . | . . . . . . . . Disarmed . | . . . . . . . . Reprogrammed . | . . . . . . . . Reused 1 | . . . . . . 1 . Traps Extracted . | . . . . . . . . Installed 3 | . . . . . . 3 . Triggered 1 | . . . . . . 1 . Most Traps Carried 3 | . . . . . . 3 . Machines | -11 -10 -10 -10 -9 -8 -8 -8 ---------- Run | Yrd Mat Min Exi Min Mat Gar Mat Machines Disabled 11 | . 2 . . . . 9 . Max in Single Turn 1 | . 1 . . . . 1 . Garrison Access 1 | . . . . . . . 1 Garrison Relay 4 | . . . . . . 4 . Machines Repaired . | . . . . . . . . Machines Dismantled . | . . . . . . . . Machines Sabotaged . | . . . . . . . . Overloaded Fab Kills . | . . . . . . . . Hacking | -11 -10 -10 -10 -9 -8 -8 -8 --------- Run | Yrd Mat Min Exi Min Mat Gar Mat Machines Accessed 27 | . 4 1 5 . 6 2 9 Terminals 16 | . 3 1 . . 4 2 6 Fabricators . | . . . . . . . . Repair Stations 2 | . . . . . . . 2 Recycling Units 1 | . 1 . . . . . . Scanalyzers 1 | . . . . . 1 . . Garrison Access 2 | . . . . . 1 . 1 Total Hacks 119 | . 10 2 50 . 23 6 28 Successful 84 | . 4 2 50 . 11 . 17 Failed 35 | . 6 . . . 12 6 11 Catastrophic 4 | . . . . . 2 2 . Database Lockouts . | . . . . . . . . Manual 34 | . 8 . 1 . 11 . 14 Terminals 58 | . 9 2 . . 18 6 23 Fabricators . | . . . . . . . . Repair Stations 4 | . . . . . . . 4 Recycling Units 1 | . 1 . . . . . . Scanalyzers 3 | . . . . . 3 . . Garrison Access 3 | . . . . . 2 . 1 Terminal Hacks 66 | . 1 2 50 . 7 . 6 Record 50 | . . 1 49 . . . . Prototype ID Bank 1 | . . . . . 1 . . Terminal Index 2 | . . . . . 1 . 1 Scanalyzer Index 1 | . . . . . 1 . . Alert Level 1 | . . . . . 1 . . Unreport Threat 2 | . . . . . . . 2 Assault Status 1 | . . 1 . . . . . Recall Investigation 1 | . . . . . 1 . . Hauler Manifests 2 | . . . . . 1 . 1 Registered Components 1 | . . . . . . . 1 Registered Prototypes 1 | . . . . . . . 1 Zone Layout 2 | . 1 . . . 1 . . Proto ID Catalog 1 | . . . 1 . . . . Fabricator Hacks . | . . . . . . . . Repair Station Hacks 4 | . . . . . . . 4 Scan Component 2 | . . . . . . . 2 Repair 2 | . . . . . . . 2 Recycling Unit Hacks 1 | . 1 . . . . . . Report Inventory 1 | . 1 . . . . . . Scanalyzer . | . . . . . . . . Garrison Access Hacks 2 | . . . . . 1 . 1 Unlock Access 1 | . . . . . 1 . . Seal Access 1 | . . . . . . . 1 Unauthorized Hacks 11 | . 2 . . . 3 . 6 Terminals 11 | . 2 . . . 3 . 6 Assimilate 2 | . . . . . . . 2 Botnet 9 | . 2 . . . 3 . 4 Fabricators . | . . . . . . . . Repair Stations . | . . . . . . . . Recycling Units . | . . . . . . . . Scanalyzers . | . . . . . . . . Garrison Access . | . . . . . . . . Data Cores Recovered 1 | . 1 . . . . . . Used . | . . . . . . . . Hacking Detections 18 | . 3 . . . 6 2 7 Full Trace Events 3 | . . . . . 1 2 . Feedback Events . | . . . . . . . . Feedback Blocked . | . . . . . . . . Robot Schematics Acquired . | . . . . . . . . Robots Built . | . . . . . . . . Authchips . | . . . . . . . . Time . | . . . . . . . . Total Robot Build Rating . | . . . . . . . . Part Schematics Acquired . | . . . . . . . . Parts Built . | . . . . . . . . Authchips . | . . . . . . . . Time . | . . . . . . . . Total Part Build Rating . | . . . . . . . . Parts Repaired 2 | . . . . . . . 2 Time 70 | . . . . . . . 70 Parts Recycled . | . . . . . . . . Recycled Matter . | . . . . . . . . Retrieved Matter . | . . . . . . . . Retrieved Components . | . . . . . . . . Parts Scanalyzed . | . . . . . . . . Part Schematics Acquired . | . . . . . . . . Parts Damaged . | . . . . . . . . Bothacking | -11 -10 -10 -10 -9 -8 -8 -8 ------------ Run | Yrd Mat Min Exi Min Mat Gar Mat Used RIF Installer 1 | . . . . . . 1 . Robots Hacked 4 | . . . . . . . 4 Non-combat . | . . . . . . . . Combat 4 | . . . . . . . 4 Robot Hacks Applied 5 | . . . . . . . 5 overwrite_iff 4 | . . . . . . . 4 formatsys_high 1 | . . . . . . . 1 Relay Couplers Released 18 | . . . . . . 18 . Machine Destruction 18 | . . . . . . 18 . Attached 3 | . . . . . . . 3 Fabnet Peak Effective % . | . . . . . . . . Robots Rewired . | . . . . . . . . Allies Hacked . | . . . . . . . . Hacks Repelled . | . . . . . . . . Allies | -11 -10 -10 -10 -9 -8 -8 -8 -------- Run | Yrd Mat Min Exi Min Mat Gar Mat Total Allies 5 | . . . . . . . 5 Largest Group 1 | . . . . . . . 1 Highest-Rated Group 21 | . . . . . . . 21 Highest-Rated Ally 21 | . . . . . . . 21 Total Orders 3 | . . . . . . . 3 STAY 1 | . . . . . . . 1 FOLLOW 2 | . . . . . . . 2 Ally Attacks 18 | . . . . . . . 18 Total Damage 289 | . . . . . . . 289 Kills 2 | . . . . . . . 2 Allies Corrupted . | . . . . . . . . Allies Melted . | . . . . . . . . Intel | -11 -10 -10 -10 -9 -8 -8 -8 ------- Run | Yrd Mat Min Exi Min Mat Gar Mat Active Infowar (turns) . | . . . . . . . . Robot Analysis Total . | . . . . . . . . Derelict Logs Recovered 2 | . . 1 . 1 . . . Drone Launches . | . . . . . . . . Drone Recoveries . | . . . . . . . . Exploration | -11 -10 -10 -10 -9 -8 -8 -8 ------------- Run | Yrd Mat Min Exi Min Mat Gar Mat Turns Passed 5714 | 44 637 297 364 621 770 2213 768 Spaces Moved 3863 | 40 495 228 336 517 521 1225 501 Core 15 | 15 . . . . . . . Treads 128 | . . . . . . 128 . Legs . | . . . . . . . . Wheels 3720 | 25 495 228 336 517 521 1097 501 Hover . | . . . . . . . . Flight . | . . . . . . . . Fastest Speed 50 | 50 90 105 105 105 105 105 105 Average Speed 114 | 75 103 105 105 105 107 131 115 Slowest Speed 250 | 90 130 105 105 105 120 250 150 Overloaded Moves . | . . . . . . . . Propulsion Burnouts . | . . . . . . . . Robots Hopped . | . . . . . . . . Potential Cave-ins 2 | . . 2 . . . . . Cave-ins Triggered 1 | . . . . . . 1 . Exploration Rate (%) 49 | 3 55 41 61 85 32 79 41 Regions Visited 7 Branch Regions 3 Pre-discovered Areas 1 | . . . 1 . . . . Known Exits Taken 1 | . . . . . 1 . . Unknown Exits Taken 5 | 1 1 1 1 1 . . . Scrap Searched 3 | . . 1 . 2 . . . Spaces Dug 10 | . . . . 4 . 5 1 Terrain Destroyed 242 | . . 60 . 122 35 21 4 Melee 2 | . . . . . . 1 1 Projectile 7 | . . . . . 2 2 3 AOE 233 | . . 60 . 122 33 18 . Terrain Rammed . | . . . . . . . . Walls Destroyed . | . . . . . . . . Machines Disabled . | . . . . . . . . Actions | -11 -10 -10 -10 -9 -8 -8 -8 --------- Run | Yrd Mat Min Exi Min Mat Gar Mat Total 4684 | 53 577 273 349 567 671 1541 653 Wait 251 | . 22 34 . 5 59 41 90 Move 3856 | 39 494 227 335 516 520 1224 501 Hop . | . . . . . . . . Pick Up 99 | 8 21 1 6 5 18 30 10 Fast Attach 8 | . . . . 1 3 1 3 Attach 31 | 6 4 . . 1 7 7 6 Detach 2 | . . . . . 1 . 1 Swap 57 | . 5 1 1 6 11 26 7 Drop 74 | . 7 . 6 6 20 26 9 Fire 189 | . 23 8 . 27 32 87 12 Melee 78 | . 1 . . . . 63 14 Ram . | . . . . . . . . Kick . | . . . . . . . . Crush . | . . . . . . . . Escape Stasis 32 | . . . . . . 32 . Rewire 4 | . . 2 1 . . 1 . Trap 3 | . . . . . . 3 . Miscellaneous . | . . . . . . . . Route ------- -11/Scrapyard -10/Materials (discovered 2 exits: [*Mat] / *Min) -10/Mines -10/Exiles -9/Mines (discovered 2 exits: *Mat x2) -8/Materials -8/Garrison (discovered 3 exits: *Mat x3) -8/Materials History --------- Turn | Location | Event 8 | -11/Scrapyard | Discovered new exit (range 16) 45 | -11/Scrapyard | Entered Materials 199 | -10/Materials | Discovered new exit (range 14) 311 | -10/Materials | Build established: Mutant 365 | -10/Materials | Discovered new exit (range 16) 416 | -10/Materials | Core integrity fell below 50% 682 | -10/Materials | Entered Mines 683 | -10/Mines | Assembled infested the area 685 | -10/Mines | Met a Derelict bent on vengeance 695 | -10/Mines | Met 8R-AWN 844 | -10/Mines | Discovered new exit (range 5) 979 | -10/Mines | Entered Exiles 1012 | -10/Exiles | Welcomed by 8R-AWN 1029 | -10/Exiles | Met EX-HEX 1069 | -10/Exiles | Met EX-BIN 1083 | -10/Exiles | Aligned with FarCom system 1084 | -10/Exiles | Given EX-Vault access code 1109 | -10/Exiles | Opened EX-Vault 1119 | -10/Exiles | Found Field Lobotomy Kit 1142 | -10/Exiles | Warned to stay clear of 0b10 Research branches 1256 | -10/Exiles | Met EX-DEC 1264 | -10/Exiles | Learned location of Zion (-7) 1328 | -10/Exiles | Discovered new exit (range 14) 1343 | -10/Exiles | Left Exiles lab with Field Lobotomy Kit 1343 | -10/Exiles | Entered Mines 1421 | -9/Mines | Discovered new exit (range 6) 1470 | -9/Mines | Learned 2 Materials zone layouts 1573 | -9/Mines | Discovered new exit (range 9) 1964 | -9/Mines | Entered Materials 1964 | -8/Materials | Evolved 4 slots: Utility x4 2277 | -8/Materials | Destroyed 9 combat bots 2650 | -8/Materials | Garrison activated, responded to threat 2731 | -8/Materials | Identified exit to Garrison 2734 | -8/Materials | Entered Garrison 2800 | -8/Garrison | Triggered checkpoint 2978 | -8/Garrison | Triggered checkpoint 2981 | -8/Garrison | Triggered checkpoint 3015 | -8/Garrison | Crushed by falling debris 3141 | -8/Garrison | Triggered checkpoint 3164 | -8/Garrison | Triggered checkpoint 3502 | -8/Garrison | Triggered checkpoint 3511 | -8/Garrison | Core integrity fell below 50% 3530 | -8/Garrison | Discovered new exit (range 14) 3765 | -8/Garrison | Discovered new exit (range 10) 3876 | -8/Garrison | Triggered checkpoint 3927 | -8/Garrison | Build established: Scavenger-Mutant 4122 | -8/Garrison | Triggered checkpoint 4139 | -8/Garrison | Garrison Relay disabled 4179 | -8/Garrison | Discovered new exit (range 11) 4346 | -8/Garrison | Garrison Relay disabled 4578 | -8/Garrison | Installed Relay Interface Framework 4587 | -8/Garrison | Garrison Relay disabled 4802 | -8/Garrison | Triggered checkpoint 4809 | -8/Garrison | Garrison Relay disabled 4947 | -8/Garrison | Entered Materials 5348 | -8/Materials | Repaired Arm. Wheel 5533 | -8/Materials | Repaired Ion Cannon? 5707 | -8/Materials | Core integrity fell below 20% 5715 | -8/Materials | Destroyed by H-61 Shepherd with Heavy Assault Cannon Last Messages --------------- Rewriting IFF filter. [Achievement: Part-time Excavator] 05690_ Critical hit (Burn: +26). 05691_ Jacked G-47 Trooper... >>overwrite_iff Rewriting IFF filter. 05692_ K-01 Serf collects debris. 05693_ G-47 Trooper destroyed. 05694_ Discarded Relay Coupler [Grunt]. 05696_ K-01 Serf collects debris. 05697_ Jacked Y-45 Defender... >>overwrite_iff Rewriting IFF filter. 05697_ G-47 Trooper destroyed. 05699_ K-01 Serf collects debris. 05701_ Y-45 Defender destroyed. 05712_ Critical hit (Burn: +26). 05712_ Hvy. Mace blasted off. [Achievement: First Step to Greatness] [Achievement: 5k Club] Map ----- +----------------------------------------------------+ | ?????????????????????????????????????????????????? | | ?????????????????????????????????????????????????? | | ?????????????????????????????????????????????????? | | ?????????????????????????????????????????????????? | | ?????????????????????????????????????????????????? | | ?????????????????????????????????????????????????? | | ?????????????????????????????????????????????????? | | ?????????????????????????????????????????????????? | | ?????????????????????????????????????????????????? | | ?????????????????????????????????????????????????? | | ?????????????????????????????????????????????????? | | ?????????????????????????????????????????????????? | | ?????????????????????######??????????????????????? | | ?????????????????????# ??????????????????????? | | ????????????????????? ??????????????????????? | | ?????????????????????? Y ??????????????????????? | | ??????????s??????????? ??????????????????????? | | ?????????????????????? ??????????????????????? | | ??????????????????????# #??????????????????????? | | ??????????????????????# #??????????????????????? | | ??????????????????????# #??????????????????????? | | ??????????????????????# #??????????????????????? | | ??????????????????????# #??????????????????????? | | ?????????/????????????# % #??##########??????????? | | ?????????????????? ???# #? #??????????? | | ????????????????# ""?# @#? !! #??????????? | | ????????????????# """#% #= !| #??????????? | | ?????????????Y??# """# /# #??????????? | | ????????????????# o + Y #?????????? | | ????????????????# # # #??????????? | | ????????????????# = # # #??????????? | | ????????????????# ?# #############??????????? | | ????????????????####??# ==#??????????????????? | | ??????????????????????# ==#??????????????????? | | ??????????????????????# !!#??????????????????? | | ??????????????????????+ !!#??????????????????? | | ??????????????????????# ==#??????????????????? | | ??????????????????=???#xx ==#??????????????????? | | ##????????????????????# #####??????????????????? | | #????????????????????#!g #??????????????????????? | | #????????????????????#%g #??????????????????????? | | #????????????????????# #??????????????????????? | | #????????????????????#g ###?????????##?????????? | | #????????????????????# H#"##########T###???????? | | #????????????????????# =[!%!*[%[** #???????? | | #????????????????????# =%############## #???????? | | #????????????????????#=*[#??????????????????????? | | #######################%[ #??????????????????????? | | = #??????????????????????? | | #??????????????????????? | +----------------------------------------------------+ Best States ------------- Heat Dissipation 45 Energy Generation 14 Energy Capacity 275 Matter Stores 300 Matter Capacity 300 Sight Range 16 Terrain Scan Density 10 Armor Coverage 600 Core Shielding 20 Utility Shielding 66 Evasion (%) 50 Recoil Reduction 2 Offensive Hacking 20 Defensive Hacking 10 Relay Coupler Types 1 Relay Coupler Value 20 Item Schematics ----------------- None Robot Schematics ------------------ None Fabricated ------------ Nothing Repaired ---------- Arm. Wheel | 49% | -8/Materials Ion Cannon | 13% | -8/Materials Alien Tech Used ----------------- None Achievements -------------- 5k Club Assimilation Complete Crack Shot Dramatic Entrance Everything Is Under Control First Step to Greatness GoHome() I Survived The Infestation It's Just You Librarian Loot Pinata Novice Programmer One Hack Too Far Part-time Excavator Part-time Mechanic Power Corrupts Quantum Hacking Remodeling Risk Taker Shopping List Slippery One Tourist Troublemaker True Hacker Uninvited Guest Unlikely Earthworm root@ Challenges ------------ None Game ------ Seed CompositeWaveShovel Manual? 0 Play Time 01:06:58 Cumulative 1.0 hours Start 2025.05.23 @ 16:18:07 End 2025.05.23 @ 17:36:17 Sessions 3 Manual Loads 0 Difficulty Rogue Special Mode None Game No. 1 Rogue 1 Adventurer 0 Explorer 0 Win Type - Total 0 Types 0/0/0/0/0/0/0/0/0/0 Lore% 4 Gallery% 3 Achievement% 10 Wizard Run 0 Options --------- Layout 1 ASCII 0 Keyboard 0 Movement Mouse Keybinds 0 Fullscreen 1 Font 24/Smallcaps Map View 50x35 Zoom Use 0% Tactical HUD 1 Map Filters NONE Filters NONE Steam 0 RUN: 5bfc68b8-16a4-4c3c-956e-1e1d1b02d292